bitfinex-derivatives/quotes_SOLF0:USTF0_20250808
["timestamp","ask_amount","ask_price","bid_price","bid_amount"]
[1754667898089,6.00224188,174.4,174.39,111.66]
[1754667899286,2.86224188,174.4,174.39,114.68]
[1754667899491,16.43093162,174.4,174.39,111.66]
[1754667899687,10.69773162,174.4,174.39,111.66]
[1754667900000,6.00224188,174.4,174.39,114.68]
[1754667900200,2.86224188,174.4,174.39,114.68]
[1754667900497,10.69773162,174.41,174.37,3.02]
[1754667900699,6.00224188,174.4,174.39,114.58]
[1754667900893,2.86224188,174.4,174.39,114.58]
[1754667901096,2.86224188,174.41,174.4,3.02]
[1754667901390,3.14,174.42,174.41,3.02]
[1754667901593,6.00224188,174.42,174.41,111.58]
[1754667901799,2.86224188,174.42,174.41,114.6]
[1754667902295,8.8726,174.42,174.41,111.58]
[1754667902496,16.43033162,174.42,174.41,111.58]
[1754667902692,10.69773162,174.42,174.41,111.58]
[1754667902898,11.73484188,174.42,174.41,111.58]
[1754667903100,11.73484188,174.42,174.4,3.02]
[1754667903294,8.8726,174.42,174.4,3.02]
[1754667903500,2.86218985,174.41,174.4,3.02]
[1754667903700,2.86218985,174.41,174.4,114.74]
[1754667903900,9.44651826,174.5,174.4,114.74]
[1754667903901,2.86218985,174.42,174.41,3.02]
[1754667904096,4.69548974,174.45,174.42,6.1367093]
[1754667904097,6.00218985,174.44,174.42,6.1367093]
[1754667904303,6.00218985,174.44,174.4,114.74]
[1754667904304,3.14,174.44,174.43,111.7]
[1754667904599,3.14,174.43,174.4,9.1567093]
[1754667904803,6.0034882,174.42,174.41,111.72]
[1754667905103,2.8634882,174.42,174.41,114.74]
[1754667905502,2.8634882,174.43,174.42,3.02]
[1754667905703,6.0034882,174.43,174.42,3.02]
[1754667906097,2.8634882,174.43,174.42,3.02]
[1754667906303,6.28065209,174.48,174.42,3.02]
[1754667906304,4.69869261,174.45,174.42,9.1567093]
[1754667906499,4.69869261,174.47,174.45,3.3]
[1754667906802,7.86869261,174.46,174.45,3.3]
[1754667907000,7.86869261,174.46,174.45,111.68]
[1754667907298,13.60127511,174.46,174.45,111.68]
[1754667907506,8.9012,174.46,174.45,111.68]
[1754667908399,5.7321,174.44,174.3,34.8293093]
[1754667908602,7.86974985,174.45,174.43,3.3]
[1754667908803,7.86974985,174.45,174.44,111.8]
[1754667909099,13.60144985,174.45,174.44,111.8]
[1754667909300,8.9017,174.45,174.44,111.8]
[1754667910403,3.17,174.44,174.43,111.9]
[1754667910593,4.70047941,174.44,174.43,111.9]
[1754667910799,13.60237941,174.44,174.43,7.44164667]
[1754667911006,13.60228096,174.44,174.43,7.44164667]
[1754667911194,13.60327828,174.44,174.43,7.44164667]
[1754667911599,13.60327828,174.44,174.43,4.14164667]
[1754667912098,6.28065209,174.53,174.48,5.7306]
[1754667912300,6.28065209,174.56,174.52,4.14164667]
[1754667912501,5.7283,174.55,174.54,4.14164667]
[1754667912705,4.14164667,174.56,174.5,4.14164667]
[1754667912899,3.17,174.53,174.5,4.14164667]
[1754667913101,3.17,174.53,174.47,111.74]
[1754667913404,3.17,174.52,174.47,111.74]
[1754667913603,9.43857543,174.52,174.47,111.74]
[1754667913803,3.17,174.51,174.45,4.14164667]
[1754667914004,3.17,174.51,174.47,4.14164667]
[1754667915101,5.7306,174.48,174.47,4.14164667]
[1754667915306,8.9006,174.48,174.47,4.14164667]
[1754667915914,5.7306,174.48,174.46,4.14164667]
[1754667916101,4.14164667,174.6,174.46,4.14164667]
[1754667916102,3.17,174.57,174.47,4.14164667]
[1754667916303,15.58209038,174.77,174.46,295.14164667]
[1754667916304,3.17,174.61,174.54,4.14164667]
[1754667916703,3.17,174.61,174.53,111.54]
[1754667917708,3.17,174.61,174.53,115.68164667]
[1754667917904,4.14164667,174.6,174.53,115.68164667]
[1754667918104,3.17,174.59,174.53,115.68164667]
[1754667918300,3.17,174.55,174.53,115.68164667]
[1754667918506,4.14164667,174.6,174.53,115.68164667]
[1754667918507,3.17,174.54,174.53,115.68164667]
[1754667918708,2.78358987,174.58,174.53,111.54]
[1754667919008,3.17,174.56,174.53,111.54]
[1754667919205,3.17,174.54,174.53,111.54]
[1754667920904,3.17,174.5,174.47,6.12868971]
[1754667921112,3.17,174.5,174.48,111.46]
[1754667921806,3.17,174.51,174.48,111.46]
[1754667922011,3.17,174.55,174.49,6.12868971]
[1754667922404,3.17,174.54,174.51,6.12868971]
[1754667922604,2.78358987,174.57,174.49,6.12868971]
[1754667922910,3.17,174.56,174.49,6.12868971]
[1754667923111,3.17,174.53,174.49,6.12868971]
[1754667923911,3.17,174.53,174.49,11.85868971]
[1754667924508,3.17,174.56,174.49,6.12868971]
[1754667924704,3.17,174.59,174.53,6.12868971]
[1754667924905,3.17,174.59,174.53,117.46868971]
[1754667925114,5.7278,174.57,174.53,117.46868971]
[1754667925312,3.17,174.55,174.53,117.46868971]
[1754667925810,3.17,174.54,174.53,117.46868971]
[1754667926205,3.17,174.56,174.53,117.46868971]
[1754667926404,3.17,174.56,174.53,111.34]
[1754667926607,2.77861458,174.61,174.55,6.12868971]
[1754667926808,18.4831177,174.67,174.53,111.34]
[1754667926809,2.77861458,174.63,174.57,6.12868971]
[1754667927001,3.17,174.61,174.59,6.12868971]
[1754667927199,2.77861458,174.65,174.59,6.12868971]
[1754667927399,3.17,174.62,174.59,11.85568971]
[1754667927602,3.17,174.62,174.59,6.12868971]
[1754667927803,2.77861458,174.66,174.61,6.12868971]
[1754667928005,3.17,174.63,174.61,6.12868971]
[1754667928205,3.17,174.65,174.61,6.12868971]
[1754667928605,5.7256,174.64,174.61,6.12868971]
[1754667928812,3.17,174.63,174.59,6.12868971]
[1754667929204,3.17,174.65,174.59,6.12868971]
[1754667929408,3.17,174.65,174.61,6.12868971]
[1754667929610,5.7257,174.64,174.59,6.12868971]
[1754667929818,2.77861458,174.68,174.59,6.12868971]
[1754667930009,3.17,174.61,174.59,6.12868971]
[1754667931314,3.17,174.68,174.59,6.12868971]
[1754667931707,3.17,174.68,174.5,6.12868971]
[1754667931708,6.12868971,174.68,174.5,6.12868971]
[1754667931910,3.17,174.6,174.53,6.12868971]
[1754667932107,3.17,174.6,174.52,111.44]
[1754667932413,3.17,174.59,174.52,111.44]
[1754667932617,3.17,174.59,174.52,117.56868971]
[1754667932810,3.17,174.53,174.49,6.12868971]
[1754667933112,3.17,174.55,174.48,111.42]
[1754667933320,3.17,174.54,174.47,117.58868971]
[1754667933518,3.17,174.54,174.47,111.46]
[1754667933916,3.17,174.54,174.47,117.58868971]
[1754667934416,5.7292,174.52,174.47,111.46]
[1754667934618,3.17,174.51,174.47,111.46]
[1754667935006,8.8991,174.53,174.48,6.12868971]
[1754667935211,3.17,174.52,174.48,6.12868971]
[1754667935914,2.76512365,174.57,174.48,6.12868971]
[1754667935915,2.76512365,174.57,174.51,5.7292]
[1754667936219,3.32,174.6,174.51,6.12868971]
[1754667936415,3.32,174.59,174.51,6.12868971]
[1754667936610,5.7283,174.55,174.51,6.12868971]
[1754667936812,3.32,174.53,174.51,6.12868971]
[1754667937617,5.7292,174.52,174.51,6.12868971]
[1754667937807,3.32,174.54,174.41,390.32]
[1754667938014,12.39726514,174.6,174.41,390.32]
[1754667938015,3.32,174.52,174.44,6.12868971]
[1754667938312,6.12868971,174.53,174.44,6.12868971]
[1754667938313,3.32,174.5,174.44,6.12868971]
[1754667938510,3.32,174.53,174.48,6.12868971]
[1754667938715,3.32,174.51,174.49,111.78]
[1754667938915,3.32,174.5,174.49,111.78]
[1754667939109,3.32,174.51,174.49,111.78]
[1754667940516,3.32,174.55,174.5,6.12868971]
[1754667940720,3.32,174.55,174.52,6.12868971]
[1754667941109,3.32,174.57,174.54,6.12868971]
[1754667941414,3.32,174.56,174.54,6.12868971]
[1754667941613,3.32,174.56,174.54,11.85718971]
[1754667941817,3.32,174.58,174.55,111.68]
[1754667942015,3.32,174.65,174.57,6.12868971]
[1754667943021,3.32,174.61,174.57,11.85618971]
[1754667943219,5.726,174.62,174.57,6.12868971]
[1754667943527,3.32,174.61,174.57,6.12868971]
[1754667943823,3.32,174.6,174.57,6.12868971]
[1754667944027,3.32,174.59,174.57,6.12868971]
[1754667944724,2.76639461,174.6,174.57,6.12868971]
[1754667944925,3.32,174.62,174.59,6.12868971]
[1754667945828,3.32,174.67,174.61,6.12868971]
[1754667946019,2.77140462,174.69,174.64,6.12868971]
[1754667946216,3.32,174.68,174.62,5.7259]
[1754667946415,3.32,174.68,174.64,6.12868971]
[1754667946726,3.32,174.66,174.6,117.64868971]
[1754667947121,5.7256,174.64,174.6,117.64868971]
[1754667947317,3.32,174.62,174.6,117.64868971]
[1754667947725,2.76774372,174.69,174.6,117.64868971]
[1754667947726,9.0449,174.66,174.6,117.64868971]
[1754667947922,9.0449,174.66,174.63,6.12868971]
[1754667947923,2.76774372,174.65,174.63,6.12868971]
[1754667948122,3.32,174.66,174.63,6.12868971]
[1754667948724,3.32,174.66,174.65,6.12868971]
[1754667948918,2.76774372,174.7,174.65,6.12868971]
[1754667949124,3.32,174.67,174.65,6.12868971]
[1754667949325,3.32,174.66,174.65,6.12868971]
[1754667949830,3.32,174.66,174.61,5.7261]
[1754667950024,6.08774372,174.66,174.64,6.12868971]
[1754667950225,3.32,174.66,174.64,6.12868971]
[1754667951328,6.08774372,174.67,174.64,6.12868971]
[1754667951523,3.32,174.66,174.64,6.12868971]
[1754667954326,3.32,174.71,174.64,6.12868971]
[1754667954721,5.7238,174.69,174.64,6.12868971]
[1754667954922,3.32,174.67,174.64,6.12868971]
[1754667955435,8.49174372,174.68,174.64,6.12868971]
[1754667955634,3.32,174.67,174.62,6.12868971]
[1754667955822,3.32,174.67,174.6,6.12868971]
[1754667956630,3.32,174.63,174.6,6.12868971]
[1754667957033,3.32,174.61,174.6,6.12868971]
[1754667957236,2.76774372,174.63,174.6,6.12868971]
[1754667957532,12.39726514,174.7,174.6,6.12868971]
[1754667957533,3.32,174.62,174.6,6.12868971]
[1754667957727,2.76774372,174.64,174.6,6.12868971]
[1754667957929,6.08774372,174.69,174.63,6.12868971]
[1754667958134,3.32,174.67,174.65,6.12868971]
[1754667958326,3.32,174.66,174.65,6.12868971]
[1754667958523,3.32,174.7,174.65,6.12868971]
[1754667959136,3.32,174.73,174.67,6.12868971]
[1754667959530,3.32,174.71,174.67,6.12868971]
[1754667959929,9.0433,174.71,174.67,6.12868971]
[1754667960131,6.26857543,174.75,174.67,6.12868971]
[1754667960332,9.58857543,174.74,174.65,117.38868971]
[1754667960537,3.32,174.66,174.58,6.12868971]
[1754667960736,6.08605164,174.66,174.56,6.12868971]
[1754667961039,5.726,174.62,174.57,5.7274]
[1754667961231,3.32,174.6,174.58,6.12868971]
[1754667961537,3.32,174.62,174.58,11.85588971]
[1754667961730,2.76752616,174.66,174.58,6.12868971]
[1754667961932,3.32,174.65,174.58,6.12868971]
[1754667962127,3.32,174.63,174.58,6.12868971]
[1754667962332,6.08752616,174.63,174.6,6.12868971]
[1754667962633,3.32,174.63,174.6,6.12868971]
[1754667963939,3.32,174.63,174.6,11.85528971]
[1754667964130,3.32,174.63,174.6,6.12868971]
[1754667964335,3.32,174.62,174.6,6.12868971]
[1754667964629,5.7256,174.64,174.6,6.12868971]
[1754667964832,3.32,174.61,174.6,6.12868971]
[1754667965433,2.76887438,174.62,174.58,6.12868971]
[1754667965627,3.32,174.61,174.58,6.12868971]
[1754667966641,3.17,174.59,174.58,6.12868971]
[1754667967138,3.17,174.59,174.56,6.12868971]
[1754667967443,6.26857543,174.67,174.55,111.26]
[1754667967444,9.29868971,174.64,174.55,111.26]
[1754667967640,3.17,174.61,174.53,385.04]
[1754667968139,5.7278,174.57,174.53,385.04]
[1754667968344,3.17,174.55,174.53,385.04]
[1754667970137,3.17,174.55,174.53,390.7688]
[1754667970643,3.17,174.6,174.54,6.12868971]
[1754667970937,3.17,174.61,174.56,6.12868971]
[1754667971144,3.17,174.61,174.56,117.36868971]
[1754667971349,5.7272,174.59,174.56,117.36868971]
[1754667971544,3.17,174.58,174.56,111.24]
[1754667971842,3.17,174.57,174.56,111.24]
[1754667972639,3.17,174.59,174.56,111.24]
[1754667972838,2.77286712,174.6,174.56,117.36868971]
[1754667973143,3.17,174.57,174.54,6.12868971]
[1754667973342,3.17,174.57,174.5,6.12868971]
[1754667973542,3.17,174.57,174.5,111.24]
[1754667973742,3.17,174.53,174.5,111.24]
[1754667974044,3.17,174.56,174.5,111.24]
[1754667974241,3.17,174.53,174.5,111.24]
[1754667974446,3.17,174.52,174.5,111.24]
[1754667975148,3.17,174.51,174.5,111.24]
[1754667976247,3.17,174.53,174.5,116.9699]
[1754667976443,3.17,174.53,174.51,6.12868971]
[1754667976750,3.17,174.54,174.51,6.12868971]
[1754667977251,3.17,174.52,174.5,111.24]
[1754667977845,8.8996,174.51,174.5,111.24]
[1754667981246,3.17,174.51,174.5,111.24]
[1754667981446,2.77345423,174.53,174.5,117.36868971]
[1754667981651,3.17,174.55,174.52,6.12868971]
[1754667981845,3.17,174.54,174.52,6.12868971]
[1754667982050,3.17,174.54,174.53,6.12868971]
[1754667983254,6.26857543,174.6,174.43,619.92]
[1754667983255,3.17,174.53,174.51,117.36868971]
[1754667983466,7.45841627,174.56,174.46,6.12868971]
[1754667983467,5.7305,174.49,174.46,6.12868971]
[1754667983751,2.77345423,174.55,174.46,6.12868971]
[1754667983752,3.17,174.51,174.47,111.24]
[1754667984148,3.17,174.48,174.47,111.24]
[1754667985349,3.17,174.48,174.44,11.86048971]
[1754667985556,3.17,174.48,174.45,111.24]
[1754667986055,3.17,174.47,174.45,111.24]
[1754667986256,3.17,174.46,174.45,111.24]
[1754667986955,3.17,174.49,174.45,117.36868971]
[1754667987151,2.77345423,174.52,174.47,6.12868971]
[1754667987356,2.77345423,174.55,174.5,6.12868971]
[1754667987558,3.17,174.52,174.51,111.22]
[1754667988057,3.17,174.56,174.51,111.22]
[1754667988348,3.17,174.56,174.52,6.12868971]
[1754667988553,7.45841627,174.58,174.52,6.12868971]
[1754667988748,3.17,174.55,174.54,6.12868971]
[1754667989053,3.17,174.56,174.54,117.36868971]
[1754667989254,3.17,174.58,174.54,117.36868971]
[1754667989455,2.77345423,174.61,174.56,6.12868971]
[1754667989647,3.17,174.62,174.58,11.85578971]
[1754667989848,2.77345423,174.63,174.6,6.12868971]
[1754667990047,3.17,174.64,174.62,6.12868971]
[1754667990350,3.17,174.64,174.63,111.24]
[1754667993858,3.17,174.64,174.63,111.2]
[1754667995354,3.17,174.64,174.61,111.18]
[1754667995557,3.17,174.62,174.61,111.18]
[1754667996054,8.896,174.62,174.61,111.18]
[1754667996251,3.17,174.62,174.59,111.18]
[1754667996452,3.17,174.62,174.56,3.9845]
[1754667996453,5.7271,174.59,174.56,3.9845]
[1754667996651,3.2,174.58,174.57,111.18]
[1754667998565,8.9273,174.58,174.57,111.18]
[1754667998862,3.2,174.58,174.57,111.18]
[1754668000857,3.2,174.58,174.56,3.9845]
[1754668001256,8.9276,174.57,174.56,3.9845]
[1754668002362,3.2,174.57,174.56,3.9845]
[1754668002861,3.2,174.59,174.56,3.9845]
[1754668003163,2.77345423,174.59,174.57,6.12868971]
[1754668003364,8.49935423,174.63,174.58,111.14]
[1754668003564,3.2,174.62,174.58,111.14]
[1754668003753,5.97345423,174.62,174.58,111.14]
[1754668003957,3.2,174.61,174.58,111.14]
[1754668004162,3.2,174.6,174.58,111.14]
[1754668004963,2.94155346,174.62,174.58,111.14]
[1754668005164,3.2,174.61,174.58,111.14]
[1754668005367,3.2,174.62,174.58,111.14]
[1754668005667,2.94155346,174.62,174.58,111.14]
[1754668005855,3.2,174.59,174.58,111.14]
[1754668006061,2.94155346,174.61,174.58,111.12]
[1754668006469,5.7261,174.62,174.58,111.12]
[1754668006665,8.66765346,174.62,174.58,111.12]
[1754668006866,3.2,174.6,174.58,111.12]
[1754668007265,3.2,174.61,174.59,6.12868971]
[1754668007865,0.03664246,174.62,174.59,6.12868971]
[1754668008474,0.03664246,174.62,174.59,11.85558971]
[1754668008771,0.03664246,174.62,174.59,6.12868971]
[1754668008966,0.03664246,174.62,174.59,11.85558971]
[1754668009169,3.2,174.61,174.59,6.12868971]
[1754668009674,0.03664246,174.62,174.59,6.12868971]
[1754668010167,3.23664246,174.62,174.59,6.12868971]
[1754668010365,0.03664246,174.62,174.61,6.12868971]
[1754668010560,0.03664246,174.62,174.61,117.22868971]
[1754668011067,0.03664246,174.62,174.61,122.95498971]
[1754668012674,0.03664246,174.62,174.61,117.22868971]
[1754668012675,3.23664246,174.62,174.61,117.22868971]
[1754668012867,0.03664246,174.62,174.61,117.22868971]
[1754668013066,0.03664246,174.62,174.61,122.95498971]
[1754668013369,6.13311407,174.67,174.61,117.22868971]
[1754668013565,3.2,174.67,174.64,6.12868971]
[1754668013766,3.2,174.67,174.65,111.08]
[1754668014075,3.2,174.67,174.66,6.12868971]
[1754668015671,3.2,174.69,174.66,11.85318971]
[1754668015973,2.93311407,174.71,174.66,6.12868971]
[1754668016176,3.2,174.7,174.66,11.85308971]
[1754668016677,3.2,174.68,174.66,6.16648826]
[1754668016871,2.93311407,174.72,174.66,6.16648826]
[1754668017074,4.68496204,174.74,174.68,6.12868971]
[1754668017378,3.2,174.71,174.69,116.7635]
[1754668017578,3.2,174.71,174.69,111.04]
[1754668017775,3.2,174.74,174.69,111.04]
[1754668018370,3.2,174.72,174.7,111.02]
[1754668018874,8.9231,174.71,174.7,111.02]
[1754668019076,3.2,174.71,174.7,111.02]
[1754668020179,3.2,174.71,174.7,117.14868971]
[1754668020876,3.2,174.74,174.7,117.14868971]
[1754668021077,3.2,174.74,174.73,11.85108971]
[1754668021284,3.2,174.76,174.73,117.12868971]
[1754668021487,3.2,174.79,174.75,6.12868971]
[1754668021781,3.2,174.78,174.76,110.98]
[1754668022276,3.2,174.79,174.76,110.98]
[1754668022770,8.9207,174.79,174.76,110.98]
[1754668022978,5.7207,174.79,174.76,110.98]
[1754668023281,3.2,174.77,174.76,110.98]
[1754668024076,2.92748213,174.81,174.76,110.98]
[1754668024281,3.2,174.82,174.77,6.12868971]
[1754668024682,3.2,174.79,174.77,6.12868971]
[1754668024881,3.2,174.79,174.76,110.98]
[1754668025083,3.2,174.78,174.76,110.98]
[1754668025280,2.9272888,174.8,174.76,110.98]
[1754668025481,3.2,174.83,174.76,110.98]
[1754668025679,3.2,174.81,174.79,6.12868971]
[1754668025881,3.2,174.82,174.8,110.94]
[1754668026184,3.18,174.84,174.81,6.12868971]
[1754668026384,3.18,174.83,174.8,116.6599]
[1754668026588,3.18,174.82,174.81,6.12868971]
[1754668026881,3.18,174.82,174.81,11.84848971]
[1754668027484,5.7184,174.86,174.81,11.84848971]
[1754668027485,3.18,174.86,174.81,6.12868971]
[1754668027678,3.18,174.86,174.85,6.12868971]
[1754668027874,3.18,174.86,174.85,117.04868971]
[1754668028079,3.18,174.88,174.85,117.04868971]
[1754668028376,3.18,174.88,174.87,6.12868971]
[1754668029583,5.7166,174.91,174.87,6.12868971]
[1754668029782,3.18,174.9,174.88,110.88]
[1754668029984,3.18,174.9,174.89,6.12868971]
[1754668030486,3.18,174.9,174.88,110.88]
[1754668030882,3.18,174.94,174.88,117.00868971]
[1754668031082,3.18,174.96,174.9,6.12868971]
[1754668031288,3.18,174.96,174.91,110.86]
[1754668031488,2.9272888,175.0,174.93,6.12868971]
[1754668031684,3.18,174.99,174.95,6.12868971]
[1754668031988,2.9272888,175.01,174.92,0.03751803]
[1754668031989,3.18,174.95,174.92,0.03751803]
[1754668032183,9.30868971,174.94,174.84,6.12868971]
[1754668032492,3.18,174.92,174.86,6.12868971]
[1754668032678,3.18,174.92,174.87,110.82]
[1754668033080,2.9272888,174.95,174.87,110.82]
[1754668033277,3.18,174.88,174.87,110.82]
[1754668033681,5.7175,174.88,174.87,110.82]
[1754668033986,8.8975,174.88,174.87,110.82]
[1754668034377,3.18,174.85,174.84,110.82]
[1754668034781,3.18,174.9,174.84,110.82]
[1754668034982,3.18,174.89,174.85,6.12868971]
[1754668035178,3.18,174.89,174.87,6.12868971]
[1754668035384,6.12868971,174.92,174.77,384.68]
[1754668035586,3.18,174.89,174.79,6.12868971]
[1754668035892,3.18,174.84,174.8,110.8]
[1754668036089,3.18,174.83,174.8,110.8]
[1754668036492,3.18,174.82,174.8,110.8]
[1754668036787,3.18,174.88,174.81,6.12868971]
[1754668036992,3.18,174.85,174.83,6.12868971]
[1754668037193,3.18,174.85,174.84,110.8]
[1754668038387,3.18,174.87,174.84,110.8]
[1754668038785,3.18,174.93,174.85,6.12868971]
[1754668038992,3.18,174.96,174.92,6.12868971]
[1754668039189,8.8958,174.93,174.92,116.90868971]
[1754668039395,3.18,174.93,174.92,116.90868971]
[1754668039688,3.18,174.93,174.92,110.78]
[1754668040795,3.18,174.99,174.92,110.78]
[1754668041193,3.18,174.96,174.94,6.12868971]
[1754668041392,2.91192801,175.01,174.94,6.12868971]
[1754668041393,3.18,174.99,174.94,6.12868971]
[1754668041890,3.18,174.99,174.65,34.91867257]
[1754668042095,9.30868971,174.98,174.88,6.12868971]
[1754668042302,3.18,174.9,174.89,110.74]
[1754668043388,8.8968,174.9,174.89,110.74]
[1754668043594,3.18,174.9,174.84,6.12868971]
[1754668043793,3.18,174.9,174.87,110.72]
[1754668043994,5.7173,174.89,174.87,110.72]
[1754668044297,3.18,174.88,174.87,110.76394389]
[1754668044497,3.21766079,174.9,174.87,110.76394389]
[1754668045099,3.21766079,174.9,174.87,116.48164389]
[1754668045299,0.03766079,174.9,174.88,6.12868971]
[1754668045596,3.21766079,174.9,174.88,6.12868971]
[1754668045795,0.03766079,174.9,174.87,110.76394389]
[1754668046001,3.18,174.88,174.87,110.76394389]
[1754668046305,3.21766079,174.9,174.87,110.76394389]
[1754668046505,0.03766079,174.9,174.88,6.12868971]
[1754668046802,3.18,174.89,174.87,110.76394389]
[1754668046992,0.03766079,174.9,174.87,116.8926336]
[1754668047398,3.18,174.89,174.87,116.8926336]
[1754668047599,0.03766079,174.9,174.87,116.8926336]
[1754668047803,3.18,174.89,174.87,116.8926336]
[1754668047996,3.18,174.88,174.87,110.76394389]
[1754668048202,3.18,174.88,174.87,0.04394389]
[1754668048402,3.18,174.88,174.87,110.74394389]
[1754668048903,8.8974,174.88,174.87,110.74394389]
[1754668049107,3.18,174.88,174.87,110.74394389]
[1754668049803,3.18,174.88,174.87,0.04394389]
[1754668050006,8.8974,174.88,174.87,0.04394389]
[1754668053104,3.18,174.85,174.84,110.68]
[1754668054509,3.18,174.85,174.77,384.68]
[1754668054510,0.04313602,174.86,174.77,390.80868971]
[1754668054806,3.18,174.78,174.73,0.06]
[1754668055015,3.18,174.76,174.68,384.32]
[1754668055210,3.18,174.76,174.64,5.06]
[1754668055415,3.18,174.72,174.66,5.7244]
[1754668055611,0.0363088,174.74,174.67,6.12868971]
[1754668055811,3.18,174.71,174.68,0.06]
[1754668056115,6.12868971,174.77,174.67,6.18868971]
[1754668056413,3.0,174.7,174.67,6.12868971]
[1754668056717,3.0,174.7,174.67,6.19868971]
[1754668056912,0.03936282,174.71,174.69,0.07]
[1754668057113,0.03936282,174.71,174.7,110.75]
[1754668058721,3.0,174.78,174.71,0.07]
[1754668058925,3.0,174.77,174.74,6.19868971]
[1754668059125,8.7204,174.79,174.75,110.66]
[1754668059419,2.9162813,174.83,174.75,110.66]
[1754668059616,2.9162813,174.82,174.75,110.73]
[1754668059920,3.0,174.8,174.75,110.73]
[1754668060119,3.0,174.79,174.78,6.12868971]
[1754668060427,3.0,174.79,174.78,116.80868971]
[1754668060722,3.03665096,174.8,174.78,116.80868971]
[1754668062822,3.03665096,174.8,174.76,0.07]
[1754668062823,3.0,174.79,174.77,110.68]
[1754668064021,0.03665096,174.8,174.78,6.12868971]
[1754668064216,3.0,174.79,174.77,110.68]
[1754668064624,3.0,174.78,174.77,110.68]
[1754668068532,2.9162813,174.79,174.77,110.68]
[1754668068726,2.95293226,174.8,174.77,110.68]
[1754668068927,0.03665096,174.8,174.78,6.12868971]
[1754668069225,3.03665096,174.8,174.78,6.19868971]
[1754668069526,0.03665096,174.8,174.78,6.19868971]
[1754668070023,0.03665096,174.8,174.79,0.07]
[1754668070529,3.0,174.79,174.78,6.12868971]
[1754668070730,3.0,174.79,174.74,6.12868971]
[1754668070926,5.7217,174.75,174.73,384.48]
[1754668071126,0.03665096,174.8,174.74,110.64]
[1754668071127,2.96184616,174.77,174.74,110.64]
[1754668071334,5.96184616,174.76,174.74,110.64]
[1754668071622,3.0,174.75,174.74,110.64]
[1754668072229,8.7217,174.75,174.74,110.64]
[1754668072432,3.0,174.75,174.68,6.19868971]
[1754668072629,5.96184616,174.75,174.69,110.64]
[1754668072829,3.0,174.72,174.69,110.64]
[1754668073026,5.7224,174.73,174.69,110.64]
[1754668073233,3.0,174.7,174.69,110.64]
[1754668073433,3.03848324,174.72,174.69,110.64]
[1754668073632,3.0,174.71,174.69,110.64]
[1754668074526,0.03848324,174.72,174.7,6.12868971]
[1754668074733,0.03848324,174.72,174.69,110.64]
[1754668074932,0.03848324,174.72,174.71,6.12868971]
[1754668074933,3.03848324,174.72,174.71,6.12868971]
[1754668076430,0.03848324,174.72,174.71,6.19868971]
[1754668077534,0.03848324,174.72,174.71,0.07]
[1754668077722,0.03848324,174.72,174.71,6.19868971]
[1754668078123,3.0,174.78,174.71,6.12868971]
[1754668078431,3.0,174.76,174.74,6.12868971]
[1754668078634,3.0,174.76,174.75,110.64]
[1754668083736,3.0,174.77,174.75,110.64]
[1754668083933,2.95947391,174.78,174.76,6.12868971]
[1754668084140,3.0,174.82,174.77,0.07]
[1754668084435,9.44651826,174.9,174.8,6.12868971]
[1754668084436,3.0,174.81,174.8,6.12868971]
[1754668084630,3.0,174.85,174.8,116.74868971]
[1754668085236,3.0,174.86,174.8,116.74868971]